bitfinex-derivatives/quotes_BTCF0:USTF0_20210703
["timestamp","ask_amount","ask_price","bid_price","bid_amount"]
[1625315397713,0.59166716,34590.0,34588.0,0.40455399]
[1625315398065,0.59166716,34590.0,34589.0,0.25518756]
[1625315398164,0.59166716,34590.0,34589.0,0.26049022]
[1625315398264,0.59166716,34590.0,34589.0,0.31949022]
[1625315398718,0.59166716,34590.0,34589.0,0.6597814]
[1625315399267,0.25365067,34590.0,34589.0,0.6597814]
[1625315399818,0.59114323,34591.0,34589.0,0.57471888]
[1625315400321,0.59114323,34591.0,34590.0,0.00530252]
[1625315400420,0.59114323,34591.0,34590.0,0.09034892]
[1625315400520,0.59114323,34591.0,34590.0,0.14934892]
[1625315400921,0.59114323,34591.0,34590.0,0.31946251]
[1625315401021,0.59114323,34591.0,34590.0,0.56003795]
[1625315401472,0.50660748,34591.0,34590.0,0.38992436]
[1625315402424,0.59120574,34591.0,34590.0,0.38992436]
[1625315402828,0.50660748,34591.0,34590.0,0.30487796]
[1625315403427,0.33770472,34591.0,34590.0,0.30487796]
[1625315403928,0.50670562,34591.0,34590.0,0.30487796]
[1625315404481,0.59129684,34591.0,34590.0,0.30487796]
[1625315404984,0.33770472,34591.0,34590.0,0.30487796]
[1625315405486,0.24057544,34592.0,34590.0,0.30487796]
[1625315405487,1.25361356,34592.0,34590.0,0.30487796]
[1625315405685,1.25361356,34592.0,34591.0,0.00530602]
[1625315405883,1.25361356,34592.0,34591.0,0.06430602]
[1625315406386,0.24057544,34592.0,34591.0,0.06430602]
[1625315409342,0.24057544,34592.0,34591.0,0.00530602]
[1625315409497,0.24057544,34592.0,34591.0,0.059]
[1625315409697,0.24057544,34592.0,34591.0,0.06430639]
[1625315409848,2.4379917,34592.0,34591.0,0.06430639]
[1625315409997,2.4379917,34592.0,34591.0,0.059]
[1625315410245,2.6471017,34592.0,34590.0,0.24057544]
[1625315410345,2.6471017,34592.0,34590.0,0.29957544]
[1625315410599,4.00028695,34592.0,34590.0,0.29957544]
[1625315411149,3.55100766,34591.0,34590.0,0.29957544]
[1625315412149,3.55100766,34591.0,34590.0,0.30488208]
[1625315412449,3.55100766,34591.0,34590.0,0.29957544]
[1625315412751,3.55100766,34591.0,34590.0,0.3048821]
[1625315413504,3.55100766,34591.0,34590.0,0.24057544]
[1625315414302,3.55100766,34591.0,34590.0,0.29957544]
[1625315414452,3.55100766,34591.0,34590.0,0.24057544]
[1625315414654,5.0734552,34591.0,34590.0,0.24057544]
[1625315414854,5.0734552,34591.0,34586.0,0.48115088]
[1625315415004,5.0734552,34591.0,34586.0,0.059]
[1625315415106,5.14481502,34591.0,34583.0,0.08513462]
[1625315415205,3.62236748,34591.0,34583.0,0.25542656]
[1625315415304,3.61000766,34591.0,34583.0,0.31442656]
[1625315415554,3.61000766,34591.0,34583.0,0.25542656]
[1625315415706,1.35275173,34586.0,34584.0,0.00530707]
[1625315416057,3.55060359,34585.0,34584.0,0.00530707]
[1625315416155,3.87492359,34585.0,34581.0,0.00530724]
[1625315416254,3.87492359,34585.0,34581.0,0.06430724]
[1625315416457,3.87492359,34585.0,34581.0,0.059]
[1625315416655,3.87492359,34585.0,34582.0,0.00530739]
[1625315416757,3.87492359,34585.0,34582.0,0.06430739]
[1625315417057,0.48115088,34583.0,34582.0,0.06430739]
[1625315417159,2.67938643,34583.0,34582.0,0.06430739]
[1625315417261,2.73838643,34583.0,34582.0,0.059]
[1625315417460,2.73838643,34583.0,34582.0,0.0053074]
[1625315417611,2.73838643,34583.0,34582.0,0.0643074]
[1625315418212,4.09113537,34583.0,34582.0,0.0643074]
[1625315418863,4.09113537,34583.0,34582.0,0.0053074]
[1625315418963,4.09113537,34583.0,34578.0,0.73668525]
[1625315419064,4.09113537,34583.0,34578.0,0.79568525]
[1625315419213,4.09113537,34583.0,34578.0,0.54015088]
[1625315419214,1.25541355,34579.0,34578.0,0.54015088]
[1625315419464,1.25541355,34579.0,34578.0,0.54545865]
[1625315421217,2.43926757,34579.0,34578.0,0.54545865]
[1625315423423,2.43926757,34579.0,34578.0,0.54015088]
[1625315426528,3.79148931,34579.0,34578.0,0.54015088]
[1625315429782,3.79148931,34579.0,34578.0,0.48115088]
[1625315430632,1.59279718,34579.0,34578.0,0.48115088]
[1625315431284,4.46156484,34579.0,34578.0,0.48115088]
[1625315432339,4.46126484,34579.0,34578.0,0.54015088]
[1625315433038,3.1090431,34579.0,34578.0,0.48115088]
[1625315433388,3.1090431,34579.0,34578.0,0.54015088]
[1625315433641,4.46018183,34579.0,34578.0,0.54015088]
[1625315434191,3.1090431,34579.0,34578.0,0.54015088]
[1625315435343,3.1090431,34579.0,34578.0,0.63072575]
[1625315435892,3.1090431,34579.0,34578.0,0.54545947]
[1625315438399,3.1090431,34579.0,34578.0,0.63071678]
[1625315439653,3.1090431,34579.0,34578.0,0.54545947]
[1625315444164,3.1090431,34579.0,34578.0,0.6306977]
[1625315448022,1.92782553,34579.0,34578.0,0.6306977]
[1625315448573,3.1110517,34579.0,34578.0,0.6306977]
[1625315449675,1.92782553,34579.0,34578.0,0.54545947]
[1625315450828,3.1108919,34579.0,34578.0,0.63068925]
[1625315451329,3.1108919,34579.0,34578.0,0.54545947]
[1625315451478,3.1108919,34579.0,34578.0,0.48645947]
[1625315451579,3.12325767,34579.0,34578.0,0.48645947]
[1625315452280,3.18225767,34579.0,34578.0,0.24588403]
[1625315452380,3.18225767,34579.0,34576.0,0.59660832]
[1625315452482,3.18225767,34579.0,34576.0,0.25568877]
[1625315452580,3.18225767,34579.0,34574.0,0.92241214]
[1625315452830,0.01238239,34578.0,34575.0,0.00529875]
[1625315452933,0.35499239,34578.0,34575.0,0.00529875]
[1625315453333,1.35009192,34576.0,34575.0,0.00529875]
[1625315453533,1.59066736,34576.0,34575.0,0.00529875]
[1625315453633,1.60304999,34576.0,34575.0,0.00529875]
[1625315453937,4.47224676,34576.0,34575.0,0.00529875]
[1625315455188,4.45986413,34576.0,34575.0,0.00529875]
[1625315455489,4.47224183,34576.0,34575.0,0.00529875]
[1625315455741,4.45986413,34576.0,34575.0,0.00529875]
[1625315459848,3.10977221,34576.0,34575.0,0.00529875]
[1625315460399,0.24057544,34576.0,34575.0,0.00529875]
[1625315460801,3.62227182,34576.0,34575.0,0.00529875]
[1625315464512,4.97631008,34576.0,34575.0,0.00529875]
[1625315466717,4.97631008,34576.0,34575.0,0.51764462]
[1625315467569,4.97631008,34576.0,34575.0,0.73073462]
[1625315467719,3.62227182,34576.0,34575.0,1.47285651]
[1625315468069,3.62227182,34576.0,34575.0,3.69436532]
[1625315468370,0.74789752,34576.0,34575.0,3.69436532]
[1625315468469,2.60895416,34576.0,34575.0,3.69436532]
[1625315468972,3.62373358,34576.0,34575.0,3.69436532]
[1625315472029,3.83576358,34576.0,34575.0,3.69436532]
[1625315472831,5.19054106,34576.0,34575.0,3.69436532]
[1625315473933,5.19054106,34576.0,34575.0,2.49816827]
[1625315474533,5.19054106,34576.0,34575.0,3.69599156]
[1625315474987,5.19054106,34576.0,34575.0,2.49816827]
[1625315475234,5.19054106,34576.0,34575.0,2.28507827]
[1625315476036,6.7167779,34576.0,34575.0,0.57664462]
[1625315476337,6.7167779,34576.0,34575.0,0.06429875]
[1625315477540,6.7757779,34576.0,34575.0,0.06429875]
[1625315477890,6.7167779,34576.0,34575.0,0.06429875]
[1625315478443,6.7757779,34576.0,34575.0,0.06429875]
[1625315478995,6.7167779,34576.0,34575.0,0.06429875]
[1625315479143,6.7757779,34576.0,34575.0,0.06429875]
[1625315482051,6.7757779,34576.0,34575.0,0.00529875]
[1625315482249,6.78816558,34576.0,34575.0,0.00529875]
[1625315482903,8.48240276,34576.0,34575.0,0.00529875]
[1625315483254,8.48240276,34576.0,34571.0,0.00529825]
[1625315483604,0.01238792,34575.0,34571.0,0.00529825]
[1625315483705,6.50577826,34572.0,34571.0,0.00529825]
[1625315483855,6.56477826,34572.0,34571.0,0.00529825]
[1625315487815,6.56477826,34572.0,34569.0,0.00529852]
[1625315488267,4.90651297,34570.0,34569.0,0.00529852]
[1625315488369,4.90651297,34570.0,34568.0,0.0052986]
[1625315488370,6.25996962,34570.0,34568.0,0.0052986]
[1625315488468,6.31896962,34570.0,34568.0,0.0052986]
[1625315488769,6.25988053,34569.0,34568.0,0.0052986]
[1625315488868,6.50518053,34569.0,34568.0,0.0052986]
[1625315489623,4.98258461,34569.0,34568.0,0.0052986]
[1625315489720,5.22316005,34569.0,34567.0,0.51811586]
[1625315489820,5.22316005,34569.0,34567.0,0.57711586]
[1625315489922,5.22316005,34569.0,34568.0,0.00529862]
[1625315490070,0.48587544,34569.0,34568.0,0.06429862]
[1625315490320,0.48587544,34569.0,34568.0,0.00529862]
[1625315490671,5.22347265,34569.0,34568.0,0.00529862]
[1625315492274,5.22347265,34569.0,34567.0,0.00529872]
[1625315492923,3.55179258,34568.0,34567.0,0.00529872]
[1625315493023,4.73589255,34568.0,34567.0,0.00529872]
[1625315495327,4.73589255,34568.0,34567.0,0.06429872]
[1625315495427,4.73589255,34568.0,34567.0,0.00529872]
[1625315495629,4.73589255,34568.0,34567.0,0.06429872]
[1625315495730,4.73589255,34568.0,34567.0,0.00529872]
[1625315496434,4.73589255,34568.0,34567.0,0.06429872]
[1625315496534,4.73589255,34568.0,34567.0,0.00529872]
[1625315496985,4.73589255,34568.0,34567.0,0.06429872]
[1625315497086,4.73589255,34568.0,34567.0,0.00529872]
[1625315497689,4.73589255,34568.0,34567.0,0.06429872]
[1625315497838,4.73589255,34568.0,34567.0,0.00529872]
[1625315498139,4.73589255,34568.0,34567.0,0.06429872]
[1625315498742,4.73589255,34568.0,34567.0,0.57671147]
[1625315499392,4.73589255,34568.0,34567.0,1.25991209]
[1625315500544,3.38285287,34568.0,34567.0,1.25991209]
[1625315505106,0.24057544,34569.0,34567.0,1.25991209]
[1625315505205,1.59967165,34569.0,34567.0,1.25991209]
[1625315505557,1.59967165,34569.0,34567.0,1.25461337]
[1625315505707,1.59967165,34569.0,34568.0,1.09813142]
[1625315505805,1.59967165,34569.0,34568.0,1.15713142]
[1625315506261,2.61979321,34569.0,34568.0,1.15713142]
[1625315506358,4.4900444,34569.0,34568.0,1.15713142]
[1625315509315,4.4900444,34569.0,34568.0,1.09813142]
[1625315509415,4.4900444,34569.0,34568.0,1.15713142]
[1625315513022,4.4900444,34569.0,34568.0,2.18253151]
[1625315514072,3.13094819,34569.0,34568.0,3.37886275]
[1625315514672,3.13094819,34569.0,34568.0,3.43786275]
[1625315515374,3.13094819,34569.0,34568.0,4.80385554]
[1625315515475,0.92071314,34569.0,34568.0,4.80385554]
[1625315515975,0.24057544,34569.0,34568.0,4.80385554]
[1625315517027,0.24057544,34569.0,34568.0,4.89015554]
[1625315517478,0.24057544,34569.0,34568.0,4.80385554]
[1625315520734,0.24057544,34569.0,34568.0,4.80914235]
[1625315522488,0.24057544,34569.0,34568.0,4.75014235]
[1625315522689,1.94818787,34569.0,34568.0,4.75014235]
[1625315524542,1.94818787,34569.0,34568.0,3.38414956]
[1625315524892,1.94818787,34569.0,34568.0,3.32514956]
[1625315525091,3.14245076,34569.0,34568.0,2.12881832]
[1625315525342,0.24057544,34569.0,34568.0,0.06428681]
[1625315525492,0.24057544,34569.0,34568.0,0.00528681]
[1625315525742,0.24057544,34569.0,34568.0,0.059]
[1625315525843,0.24057544,34569.0,34567.0,0.00528774]
[1625315525943,0.24057544,34569.0,34567.0,0.06428774]
[1625315526046,4.50313195,34569.0,34568.0,0.00528774]
[1625315527344,4.50313195,34569.0,34568.0,0.06428774]
[1625315527446,4.50313195,34569.0,34568.0,0.00528774]
[1625315527546,4.50313195,34569.0,34568.0,0.06428774]
[1625315527696,4.50313195,34569.0,34568.0,0.00528774]
[1625315527796,4.50313195,34569.0,34568.0,0.06428774]
[1625315527948,4.50313195,34569.0,34568.0,0.00528774]
[1625315528096,4.50313195,34569.0,34568.0,0.06428774]
[1625315528247,4.50313195,34569.0,34568.0,0.00528774]
[1625315528347,4.50313195,34569.0,34568.0,0.06428774]
[1625315528497,4.50313195,34569.0,34568.0,0.00528774]
[1625315528599,4.50313195,34569.0,34568.0,0.06428774]
[1625315528698,4.50313195,34569.0,34568.0,0.00528774]
[1625315528849,4.50313195,34569.0,34568.0,0.06428774]
[1625315529048,4.50313195,34569.0,34568.0,0.00528774]
[1625315529148,4.50313195,34569.0,34568.0,0.06428774]
[1625315529299,4.50313195,34569.0,34568.0,0.00528774]
[1625315529449,4.50313195,34569.0,34568.0,0.06428774]
[1625315529549,4.50313195,34569.0,34568.0,0.00528774]
[1625315529652,4.50313195,34569.0,34568.0,0.06428774]
[1625315529750,4.50313195,34569.0,34568.0,0.00528774]
[1625315529850,4.56213195,34569.0,34568.0,0.00528774]
[1625315530052,6.10071765,34569.0,34568.0,0.00528774]
[1625315530554,6.10071765,34569.0,34567.0,0.00528824]
[1625315530803,6.10071765,34569.0,34565.0,0.00528828]
[1625315530953,5.8130413,34568.0,34565.0,0.00528828]
[1625315531054,5.8720413,34568.0,34565.0,0.00528828]
[1625315531505,5.81437589,34566.0,34565.0,0.00528828]
[1625315531707,5.87337589,34566.0,34565.0,0.00528828]
[1625315532008,6.11395133,34566.0,34565.0,0.00528828]
[1625315532960,6.11395133,34566.0,34564.0,0.00528835]
[1625315533212,6.11395133,34566.0,34565.0,0.00528835]
[1625315533511,6.11395133,34566.0,34564.0,0.00528857]
[1625315534013,0.24057544,34565.0,34564.0,0.00528857]
[1625315534163,0.29957544,34565.0,34564.0,0.00528857]
[1625315534264,0.29957544,34565.0,34563.0,0.0052886]
[1625315534464,6.11340644,34565.0,34563.0,0.0052886]
[1625315534913,4.27496456,34564.0,34563.0,0.0052886]
[1625315535064,4.57229456,34564.0,34563.0,0.0052886]
[1625315535415,6.11141646,34564.0,34563.0,0.0052886]
[1625315535769,6.11141646,34564.0,34563.0,0.0642886]
[1625315536067,6.3519919,34564.0,34563.0,0.0642886]
[1625315536717,6.3519919,34564.0,34563.0,0.0052886]
[1625315536919,6.3519919,34564.0,34562.0,0.00529009]
[1625315537273,5.81373363,34563.0,34562.0,0.00529009]
[1625315537770,5.81373363,34563.0,34561.0,0.00529022]
[1625315537871,5.81373363,34563.0,34561.0,0.06429022]
[1625315537971,5.81373363,34563.0,34562.0,0.0052902]
[1625315538571,5.81373363,34563.0,34561.0,0.0052902]
[1625315538672,5.81373363,34563.0,34561.0,0.0642902]
[1625315538772,5.81373363,34563.0,34562.0,0.00529015]
[1625315539073,5.81373363,34563.0,34559.0,0.68219875]
[1625315539174,4.27393643,34562.0,34560.0,0.68246067]
[1625315539324,4.27393643,34562.0,34560.0,0.74675083]
[1625315539572,4.27393643,34562.0,34561.0,0.00529023]
[1625315539674,1.53887418,34563.0,34561.0,0.06429023]
[1625315540125,1.53887418,34563.0,34561.0,0.059]
[1625315540225,4.27320356,34562.0,34561.0,0.059]
[1625315540627,4.27320356,34562.0,34561.0,0.06429017]
[1625315540927,4.27320356,34562.0,34561.0,0.059]
[1625315541179,4.27320356,34562.0,34561.0,0.06429044]
[1625315541430,4.27320356,34562.0,34561.0,0.059]
[1625315541779,4.27320356,34562.0,34561.0,0.06429051]
[1625315541928,4.27320356,34562.0,34561.0,0.00529051]
[1625315542029,4.27320356,34562.0,34559.0,0.682437]
[1625315542129,4.27320356,34562.0,34559.0,0.741437]
[1625315542229,0.24057544,34560.0,34559.0,0.741437]
[1625315542379,4.51342798,34560.0,34559.0,0.741437]
[1625315542530,4.51342798,34560.0,34559.0,0.7467284]
[1625315544490,3.14616302,34560.0,34559.0,1.76961407]
[1625315548345,3.14616302,34560.0,34559.0,0.7467284]
[1625315548895,3.14616302,34560.0,34559.0,1.76891041]
[1625315550398,3.14616302,34560.0,34559.0,0.7467284]
[1625315550498,3.42721302,34560.0,34559.0,0.7467284]
[1625315552704,3.14616302,34560.0,34559.0,0.7467284]
[1625315553006,3.14616302,34560.0,34559.0,0.9767784]
[1625315553659,1.94978482,34560.0,34559.0,1.99814103]
[1625315554209,1.94978482,34560.0,34559.0,3.18947239]
[1625315554361,1.94978482,34560.0,34559.0,3.43004783]
[1625315554861,1.94978482,34560.0,34559.0,2.23871647]
[1625315555062,2.03588482,34560.0,34559.0,2.23871647]
[1625315555161,1.94978482,34560.0,34559.0,2.23871647]
[1625315556465,1.94978482,34560.0,34559.0,3.42997557]
[1625315556967,3.14531434,34560.0,34559.0,2.23871647]
[1625315557165,3.14531434,34560.0,34559.0,2.00866647]
[1625315557265,3.14531434,34560.0,34559.0,2.00337507]
[1625315557365,3.14531434,34560.0,34559.0,2.00866568]
[1625315557516,3.14531434,34560.0,34559.0,0.98730305]
[1625315558367,3.14531434,34560.0,34559.0,0.92830305]
[1625315559217,3.14531434,34560.0,34559.0,0.98730305]
[1625315559368,4.51156346,34560.0,34559.0,0.30486605]
[1625315560470,3.14531434,34560.0,34559.0,0.30486605]
[1625315563327,3.14531434,34560.0,34559.0,0.24586605]
[1625315563428,3.14531434,34560.0,34559.0,0.30486605]
[1625315564029,4.51116552,34560.0,34559.0,0.30486605]
[1625315567236,4.52357967,34560.0,34559.0,0.30486605]
[1625315568537,4.51116552,34560.0,34559.0,0.30486605]
[1625315570743,4.81883552,34560.0,34559.0,0.30486605]
[1625315570888,4.87783552,34560.0,34559.0,0.00529061]
[1625315570987,4.89024966,34560.0,34559.0,0.00529061]
[1625315571237,4.89024966,34560.0,34558.0,0.00528844]
[1625315571438,0.01241446,34559.0,34558.0,0.00528844]
[1625315571840,4.27726365,34559.0,34558.0,0.00528844]
[1625315572239,4.27726365,34559.0,34555.0,0.68281879]
[1625315572240,4.27726365,34559.0,34556.0,0.00528906]
[1625315572441,0.24057544,34557.0,34556.0,0.00528906]
[1625315572791,0.24057544,34557.0,34555.0,0.00528906]
[1625315572892,4.50467534,34557.0,34555.0,0.00528906]
[1625315573343,4.26419744,34556.0,34555.0,0.06428906]
[1625315573644,4.26419744,34556.0,34555.0,0.059]
[1625315573843,4.26419744,34556.0,34555.0,0.06428912]
[1625315574946,4.26419744,34556.0,34555.0,0.00528912]
[1625315575096,4.26419744,34556.0,34555.0,0.06428912]
[1625315575195,4.26419744,34556.0,34555.0,0.00528912]
[1625315575294,4.26419744,34556.0,34555.0,0.06428912]
[1625315575394,4.26419744,34556.0,34555.0,0.00528912]
[1625315575494,4.26419744,34556.0,34555.0,0.06428912]
[1625315577700,4.26419744,34556.0,34555.0,0.00528912]
[1625315577949,4.26419744,34556.0,34555.0,0.06428912]
[1625315578099,4.26419744,34556.0,34555.0,0.00528912]
[1625315578200,4.26419744,34556.0,34554.0,0.00528973]
[1625315578350,4.26419744,34556.0,34554.0,0.06428973]
[1625315578450,4.26419744,34556.0,34555.0,0.00528977]
[1625315578651,4.26419744,34556.0,34555.0,0.06428977]
[1625315578853,4.26419744,34556.0,34555.0,0.00528977]
[1625315579053,4.26419744,34556.0,34555.0,0.06428977]
[1625315579153,4.26419744,34556.0,34555.0,0.00528977]
[1625315579302,4.26419744,34556.0,34554.0,0.06428962]
[1625315579453,4.26419744,34556.0,34554.0,0.40596509]
[1625315579705,4.26419744,34556.0,34555.0,0.00528977]
[1625315580005,4.26419744,34556.0,34555.0,0.06428977]
[1625315580106,1.77739401,34557.0,34555.0,0.00528977]
[1625315580207,1.77739401,34557.0,34555.0,0.06428977]
[1625315580505,1.77739401,34557.0,34555.0,0.059]
[1625315580656,4.26428408,34556.0,34555.0,0.059]
[1625315581057,4.26428408,34556.0,34555.0,0.06428176]
[1625315581560,4.26428408,34556.0,34555.0,0.00528176]
[1625315581660,4.26428408,34556.0,34555.0,0.06428176]
[1625315581760,4.26428408,34556.0,34555.0,0.00528176]
[1625315581860,4.26428408,34556.0,34555.0,0.06428176]
[1625315581961,4.26428408,34556.0,34555.0,0.00528176]
[1625315582210,4.26428408,34556.0,34555.0,0.06428176]
[1625315582311,4.26428408,34556.0,34555.0,0.00528176]
[1625315582462,4.26428408,34556.0,34555.0,0.06428176]
[1625315582563,4.26428408,34556.0,34555.0,0.00528176]
[1625315582663,4.26428408,34556.0,34555.0,0.40606877]
[1625315582863,4.26428408,34556.0,34555.0,0.34706877]
[1625315582964,4.26428408,34556.0,34555.0,0.40606877]
[1625315585270,1.0193145,34556.0,34555.0,0.46506877]
[1625315585370,1.53340849,34558.0,34555.0,0.46506877]
[1625315585518,1.11522299,34558.0,34555.0,0.46506877]
[1625315585622,1.11522299,34558.0,34556.0,0.5]
[1625315585720,1.05622299,34558.0,34556.0,0.5]
[1625315585868,1.05622299,34558.0,34556.0,0.618]
[1625315585974,1.70315942,34564.0,34557.0,0.01385385]
[1625315586068,1.70315942,34564.0,34557.0,0.13185385]
[1625315586318,1.64415942,34564.0,34557.0,0.57285385]
[1625315586421,1.64415942,34564.0,34557.0,0.63185385]
[1625315586571,0.984,34574.0,34563.0,0.72172632]
[1625315586572,0.34174331,34566.0,34563.0,0.72172632]
[1625315586669,0.34174331,34566.0,34563.0,1.09563632]
[1625315586970,0.34174331,34566.0,34564.0,0.00528651]
[1625315587069,0.34182254,34571.0,34564.0,0.00528651]
[1625315587219,0.34182254,34571.0,34564.0,0.12328651]
[1625315587569,0.34184137,34569.0,34565.0,0.00528656]
[1625315587718,0.34184137,34569.0,34565.0,0.12328656]
[1625315588069,0.34184137,34569.0,34566.0,0.00528648]
[1625315588220,0.34184137,34569.0,34566.0,0.12328648]
[1625315588570,0.34167849,34570.0,34568.0,0.48115088]
[1625315588918,0.34167849,34570.0,34568.0,0.48643727]
[1625315589119,0.34167849,34570.0,34569.0,0.00528639]
[1625315590574,0.34167849,34570.0,34569.0,0.24586183]
[1625315590673,0.34167849,34570.0,34569.0,0.24057544]
[1625315591627,0.984,34574.0,34569.0,0.24057544]
[1625315591830,1.043,34574.0,34569.0,0.24057544]
[1625315592583,1.043,34574.0,34573.0,0.24057544]
[1625315595734,1.102,34574.0,34573.0,0.24057544]
[1625315595986,1.61170608,34574.0,34573.0,1.09331829]
[1625315596584,1.61170608,34574.0,34573.0,0.24057544]
[1625315596585,1.85228152,34574.0,34573.0,0.24057544]
[1625315598938,3.3793655,34574.0,34573.0,0.24057544]
[1625315600694,4.73773235,34574.0,34573.0,0.24057544]
[1625315601243,3.21064837,34574.0,34573.0,0.24057544]
[1625315601443,4.73938489,34574.0,34573.0,0.24057544]
[1625315601794,3.21064837,34574.0,34573.0,0.24057544]
[1625315602295,4.7397102,34574.0,34573.0,0.24057544]
[1625315605402,5.93085628,34574.0,34573.0,0.24057544]
[1625315607155,5.87185628,34574.0,34573.0,0.24057544]
[1625315608159,4.40179445,34574.0,34573.0,0.24057544]
[1625315609960,4.34279445,34574.0,34573.0,0.24057544]
[1625315610864,4.40179445,34574.0,34573.0,0.24057544]
[1625315611015,3.0434276,34574.0,34573.0,0.24057544]
[1625315612721,3.3573276,34574.0,34573.0,0.24057544]
[1625315612923,4.71494735,34574.0,34573.0,0.24057544]
[1625315613923,4.71494735,34574.0,34569.0,0.24057544]
[1625315614524,3.05138607,34570.0,34569.0,0.24057544]
[1625315614775,3.40996151,34570.0,34569.0,0.24057544]
[1625315615026,3.40996151,34570.0,34569.0,0.24586433]
[1625315615227,2.05384642,34570.0,34569.0,0.24586433]
[1625315615729,3.07084574,34570.0,34569.0,0.24586433]
[1625315616284,4.42623891,34570.0,34569.0,0.24586433]
[1625315616585,4.4386445,34570.0,34565.0,0.51135803]
[1625315616787,0.24057544,34566.0,34565.0,0.51135803]
[1625315616887,0.60820544,34566.0,34565.0,0.51135803]
[1625315616990,0.60820544,34566.0,34564.0,0.75200237]
[1625315617137,0.60820544,34566.0,34565.0,0.00528947]
[1625315618091,3.31711037,34566.0,34565.0,0.00528947]
[1625315619445,4.67142427,34566.0,34565.0,0.00528947]
[1625315620546,3.31711037,34566.0,34565.0,0.00528947]
[1625315621101,4.67200878,34566.0,34565.0,0.00528947]
[1625315621650,3.31711037,34566.0,34565.0,0.00528947]
[1625315622200,4.67157852,34566.0,34565.0,0.00528947]
[1625315624856,4.68398739,34566.0,34565.0,0.00528947]
[1625315625105,4.68398739,34566.0,34560.0,0.24057544]
[1625315625106,4.68398739,34566.0,34563.0,0.00528931]
[1625315625356,4.67157852,34566.0,34561.0,0.00528934]
[1625315625862,4.06339297,34564.0,34561.0,0.00528934]
[1625315626008,4.18139297,34564.0,34561.0,0.00528934]
[1625315626409,2.70858911,34562.0,34561.0,0.00528934]
[1625315626508,2.82658911,34562.0,34561.0,0.00528934]
[1625315626859,3.06716455,34562.0,34561.0,0.00528934]
[1625315631269,3.00816455,34562.0,34561.0,0.00528934]
[1625315631723,3.06716455,34562.0,34561.0,0.00528934]
[1625315631926,3.06716455,34562.0,34560.0,0.41108553]
[1625315632023,3.06716455,34562.0,34561.0,0.0052894]
[1625315632473,0.35857544,34562.0,34561.0,0.0052894]
[1625315632627,2.89654983,34562.0,34561.0,0.0052894]
[1625315632874,2.89654983,34562.0,34560.0,0.24057544]
[1625315632973,3.13712527,34562.0,34560.0,0.24057544]
[1625315633074,4.6598421,34562.0,34560.0,0.24057544]
[1625315633678,2.70665385,34561.0,34560.0,0.24057544]
[1625315633776,2.82465385,34561.0,34560.0,0.24057544]
[1625315633928,2.82465385,34561.0,34560.0,0.24586496]
[1625315635888,2.82465385,34561.0,34560.0,0.24057544]
[1625315635987,4.1781863,34561.0,34560.0,0.24057544]
[1625315636086,4.1781863,34561.0,34558.0,0.49636091]
[1625315636588,1.47153245,34561.0,34559.0,0.00528975]
[1625315637189,2.70731205,34560.0,34559.0,0.00528975]
[1625315637288,2.82531205,34560.0,34559.0,0.00528975]
[1625315637688,2.82531205,34560.0,34558.0,0.32586198]
[1625315638194,2.70707772,34559.0,34558.0,0.24057544]
[1625315638290,3.13447772,34559.0,34558.0,0.24057544]
[1625315639294,4.48785367,34559.0,34558.0,0.24057544]
[1625315640799,4.48785367,34559.0,34558.0,0.24586554]
[1625315641147,4.48785367,34559.0,34558.0,0.24057544]
[1625315642649,4.48785367,34559.0,34558.0,0.24586587]
[1625315645403,4.50026871,34559.0,34558.0,0.00529043]
[1625315645652,4.48785367,34559.0,34558.0,0.00529043]
[1625315645956,5.16598064,34559.0,34557.0,0.00528833]
[1625315646454,5.16598064,34559.0,34556.0,0.00528828]
[1625315646555,4.74565614,34558.0,34556.0,0.00528828]
[1625315646654,4.80465614,34558.0,34556.0,0.00528828]
[1625315646804,4.86365614,34558.0,34556.0,0.00528828]
[1625315646953,2.20337857,34557.0,34556.0,0.00528828]
[1625315647054,4.98606624,34557.0,34556.0,0.00528828]
[1625315647154,5.04506624,34557.0,34556.0,0.00528828]
[1625315647254,5.10406624,34557.0,34556.0,0.00528828]
[1625315647505,5.10406624,34557.0,34555.0,0.00528837]
[1625315648057,3.39005514,34556.0,34555.0,0.00528837]
[1625315648160,3.44905514,34556.0,34555.0,0.00528837]
[1625315648256,3.50805514,34556.0,34555.0,0.00528837]
[1625315649059,3.74863058,34556.0,34555.0,0.00528837]
[1625315650963,3.74863058,34556.0,34555.0,0.09060173]
[1625315651562,3.74863058,34556.0,34555.0,0.00528837]
[1625315651662,1.03662036,34556.0,34555.0,0.00528837]
[1625315651862,3.75327791,34556.0,34555.0,0.00528837]
[1625315654867,3.75327791,34556.0,34555.0,0.09062471]
[1625315655771,3.69427791,34556.0,34555.0,0.09062471]
[1625315656322,3.75327791,34556.0,34555.0,0.09062471]
[1625315656421,3.75327791,34556.0,34555.0,0.60261131]
[1625315658026,3.75327791,34556.0,34555.0,0.26128691]
[1625315658528,3.75327791,34556.0,34555.0,0.60260912]
[1625315661890,3.75327791,34556.0,34555.0,0.51727278]
[1625315662389,3.75327791,34556.0,34555.0,0.34661058]
[1625315662891,3.75327791,34556.0,34555.0,0.8586578]
[1625315666095,3.75327791,34556.0,34555.0,0.51733559]
[1625315666196,4.00373791,34556.0,34555.0,0.51733559]
[1625315666696,4.00373791,34556.0,34555.0,1.20023743]
[1625315667800,2.56479328,34556.0,34555.0,1.20023743]
[1625315668153,3.75103292,34556.0,34555.0,0.51733559]
[1625315668501,3.75103292,34556.0,34555.0,1.20037945]
[1625315670454,3.76345485,34556.0,34555.0,1.20037945]
[1625315670705,3.75103292,34556.0,34555.0,1.20037945]
[1625315671257,3.76345481,34556.0,34555.0,1.20037945]
[1625315672663,5.12081921,34556.0,34555.0,2.22626662]
[1625315677823,6.64495746,34556.0,34555.0,0.51733559]
[1625315678426,6.64495746,34556.0,34555.0,0.8595325]
[1625315680078,6.64495746,34556.0,34555.0,0.51733559]
[1625315680831,6.64495746,34556.0,34555.0,1.20196179]
[1625315683436,6.64495746,34556.0,34555.0,1.28746179]
[1625315683538,6.64495746,34556.0,34555.0,1.20196179]
[1625315687147,6.64495746,34556.0,34555.0,2.22953037]
[1625315694769,6.58595746,34556.0,34555.0,2.22953037]
[1625315694919,6.63253557,34556.0,34555.0,2.51256037]
[1625315695017,6.57353557,34556.0,34555.0,2.51256037]
[1625315695219,6.33296013,34556.0,34555.0,2.51256037]
[1625315695320,6.33296013,34556.0,34555.0,5.08297293]
[1625315695321,4.80882188,34556.0,34555.0,5.08297293]
[1625315695420,4.80882188,34556.0,34555.0,5.32354837]
[1625315695920,3.39245748,34556.0,34555.0,5.32354837]
[1625315696421,2.20621784,34556.0,34555.0,6.86504615]
[1625315697022,1.18749248,34556.0,34555.0,6.86504615]
[1625315697524,0.50944756,34556.0,34555.0,6.86504615]
[1625315698124,0.50943071,34556.0,34555.0,6.86504615]
[1625315698976,0.84879791,34556.0,34555.0,6.86504615]
[1625315699978,0.50935952,34556.0,34555.0,6.86504615]
[1625315700428,0.56835952,34556.0,34555.0,6.86504615]
[1625315700880,0.90756241,34556.0,34555.0,6.86504615]
[1625315701279,0.5679985,34556.0,34555.0,6.86504615]